bitfinex-derivatives/quotes_SOLF0:USTF0_20260311
["timestamp","ask_amount","ask_price","bid_price","bid_amount"]
[1773201945005,2.92107289,85.552,85.521,6.50467442]
[1773201945207,6.03291912,85.554,85.521,6.50467442]
[1773201945406,2.92107255,85.553,85.521,6.50467442]
[1773201945606,2.92107255,85.552,85.521,6.50467442]
[1773201945807,6.03291912,85.554,85.521,6.50467442]
[1773201946009,2.92107255,85.553,85.521,6.50467442]
[1773201946209,6.03291912,85.554,85.521,6.50467442]
[1773201946409,2.92107237,85.553,85.521,6.50467442]
[1773201946708,6.03291912,85.554,85.521,6.50467442]
[1773201946709,2.92107239,85.552,85.521,6.50467442]
[1773201946904,6.03291912,85.554,85.521,6.50467442]
[1773201947105,2.92107239,85.553,85.521,6.50467442]
[1773201947305,16.54991912,85.564,85.53,2.62468312]
[1773201947504,16.54991912,85.564,85.521,6.50467442]
[1773201947505,2.92081918,85.563,85.521,6.50467442]
[1773201947704,8.9537383,85.562,85.521,6.50467442]
[1773201947907,8.9537383,85.561,85.521,6.50467442]
[1773201948100,2.92081918,85.56,85.521,6.50467442]
[1773201948301,6.03291912,85.561,85.521,6.50467442]
[1773201948502,6.03291912,85.561,85.522,6.50467442]
[1773201952806,10.518,85.56,85.522,6.50467442]
[1773201953012,6.59568116,85.559,85.522,6.50467442]
[1773201953809,6.59568116,85.547,85.508,6.66932232]
[1773201954912,6.59568116,85.547,85.51,2.62468312]
[1773201955113,6.59568116,85.547,85.508,6.66932232]
[1773201956012,6.59568116,85.543,85.508,6.66932232]
[1773201959816,6.59568116,85.543,85.51,2.62321453]
[1773201960608,6.59568116,85.543,85.509,17.19332232]
[1773201960809,6.59568116,85.543,85.509,6.66932232]
[1773201961220,6.59568116,85.543,85.511,6.66932232]
[1773201963815,6.59568116,85.554,85.511,6.66932232]
[1773201964025,10.518,85.564,85.521,6.66932232]
[1773201964218,2.92081701,85.563,85.521,6.66932232]
[1773201964521,2.62321453,85.57,85.521,6.66932232]
[1773201964522,6.59568116,85.559,85.521,6.66932232]
[1773201965118,2.92101946,85.558,85.521,6.66932232]
[1773201965322,6.59568116,85.559,85.521,6.66932232]
[1773201965618,2.92101946,85.558,85.521,6.66932232]
[1773201965818,6.59568116,85.559,85.521,6.66932232]
[1773201966016,2.92101946,85.558,85.521,6.66932232]
[1773201966219,2.92101946,85.557,85.521,6.66932232]
[1773201966419,6.59568116,85.559,85.521,6.66932232]
[1773201966613,2.921018,85.558,85.521,6.66932232]
[1773201966814,2.921018,85.557,85.521,6.66932232]
[1773201967018,6.59568116,85.589,85.541,6.66932232]
[1773201967218,6.59568116,85.587,85.541,6.66932232]
[1773201967424,6.59568116,85.585,85.541,6.66932232]
[1773201967723,2.92096649,85.586,85.541,6.66932232]
[1773201967724,6.59568116,85.583,85.541,6.66932232]
[1773201967924,6.59568116,85.581,85.541,6.66932232]
[1773201968126,9.51597636,85.58,85.541,6.66932232]
[1773201968325,2.9202952,85.579,85.541,6.66932232]
[1773201968621,6.59568116,85.58,85.541,6.66932232]
[1773201971328,6.59568116,85.58,85.55,2.62321453]
[1773201972428,294.17281662,85.59,85.55,9.29253685]
[1773201972629,2.92000993,85.589,85.55,9.29253685]
[1773201972822,2.92000993,85.588,85.55,9.29253685]
[1773201973023,2.92000993,85.587,85.55,9.29253685]
[1773201973225,2.92000993,85.586,85.55,9.29253685]
[1773201973430,2.92000993,85.585,85.55,9.29253685]
[1773201973631,6.59568116,85.581,85.54,2.62321453]
[1773201973832,6.59568116,85.579,85.54,2.62321453]
[1773201974534,6.59568116,85.579,85.541,6.66932232]
[1773201975834,6.59568116,85.577,85.541,6.66932232]
[1773201977130,6.59568116,85.575,85.541,6.66932232]
[1773201977332,9.51597838,85.574,85.541,6.66932232]
[1773201977529,6.59568116,85.574,85.541,6.66932232]
[1773201977729,6.59568116,85.569,85.53,6.66932232]
[1773201977930,6.59568116,85.567,85.53,6.66932232]
[1773201978130,6.59568116,85.565,85.53,6.66932232]
[1773201978336,6.59568116,85.563,85.53,6.66932232]
[1773201978535,6.59568116,85.576,85.531,6.66932232]
[1773201978834,6.59568116,85.574,85.531,6.66932232]
[1773201979027,10.517,85.568,85.531,6.66932232]
[1773201979230,2.9203947,85.567,85.531,6.66932232]
[1773201979534,2.92043667,85.566,85.531,6.66932232]
[1773201979733,10.517,85.568,85.531,6.66932232]
[1773201980236,17.07927711,85.568,85.531,6.66932232]
[1773201981033,6.56227711,85.559,85.519,6.61490943]
[1773201981229,2.62321453,85.56,85.472,21.058]
[1773201981230,6.56227711,85.549,85.507,6.61490943]
[1773201982432,6.56227711,85.548,85.507,6.61490943]
[1773201983941,6.56227711,85.542,85.507,6.61490943]
[1773201988242,9.18549164,85.54,85.507,6.61490943]
[1773201988446,9.18549164,85.54,85.466,28.97348169]
[1773201988447,6.56227711,85.529,85.485,6.61490943]
[1773201988641,2.62321453,85.52,85.485,6.61490943]
[1773201989242,6.56227711,85.529,85.485,6.61490943]
[1773201989545,6.56227711,85.528,85.485,6.61490943]
[1773201992249,6.56227711,85.526,85.485,6.61490943]
[1773201994651,6.56227711,85.526,85.49,2.62321453]
[1773201996454,10.89930619,85.573,85.448,56.154]
[1773201996455,6.56227711,85.516,85.474,6.61490943]
[1773201998152,6.56227711,85.516,85.481,6.60306266]
[1773202002250,16.73373303,85.526,85.484,6.60306266]
[1773202002450,6.21173303,85.525,85.484,6.60306266]
[1773202003456,6.21173303,85.525,85.486,6.60306266]
[1773202004456,6.21173303,85.525,85.487,17.13006266]
[1773202005149,10.521,85.534,85.494,6.60306266]
[1773202005950,6.21173303,85.536,85.497,6.60306266]
[1773202007551,6.21173303,85.536,85.501,6.60306266]
[1773202017157,2.92175713,85.535,85.501,6.60306266]
[1773202017353,6.21173303,85.536,85.501,6.60306266]
[1773202017551,2.92175713,85.535,85.501,6.60306266]
[1773202017753,6.21173303,85.536,85.501,6.60306266]
[1773202018059,2.92175713,85.535,85.501,6.60306266]
[1773202018357,2.92175713,85.534,85.501,6.60306266]
[1773202018558,2.92175749,85.533,85.501,6.60306266]
[1773202018758,6.21173303,85.536,85.501,6.60306266]
[1773202018961,2.92175749,85.535,85.501,6.60306266]
[1773202019159,2.92175749,85.534,85.501,6.60306266]
[1773202019462,2.92175749,85.533,85.501,6.60306266]
[1773202019755,14.44089035,85.58,85.501,6.60306266]
[1773202019756,2.92175749,85.532,85.501,6.60306266]
[1773202019955,6.48970018,85.547,85.51,2.62394301]
[1773202020259,6.48970018,85.559,85.511,6.15321545]
[1773202020458,2.92127762,85.558,85.52,2.62394301]
[1773202020653,2.92127762,85.558,85.464,21.06]
[1773202020654,2.62394301,85.58,85.521,6.15321545]
[1773202020853,6.48970018,85.578,85.541,6.15321545]
[1773202021059,14.44089035,85.615,85.486,21.054]
[1773202021060,6.48970018,85.589,85.551,6.15321545]
[1773202021260,2.92000745,85.588,85.551,6.15321545]
[1773202021460,6.48970018,85.579,85.54,6.15321545]
[1773202023163,17.00570018,85.576,85.54,6.15321545]
[1773202023458,6.48970018,85.575,85.54,6.15321545]
[1773202026661,2.62394301,85.59,85.541,6.15321545]
[1773202027166,6.48970018,85.589,85.541,6.15321545]
[1773202028261,2.62394301,85.58,85.541,6.15321545]
[1773202028565,6.48970018,85.579,85.541,6.15321545]
[1773202029060,6.48970018,85.579,85.531,6.15321545]
[1773202030360,6.48970018,85.577,85.531,6.15321545]
[1773202030569,6.48970018,85.569,85.531,6.15321545]
[1773202032263,10.517,85.567,85.531,6.15321545]
[1773202032466,6.48970018,85.566,85.531,6.15321545]
[1773202032660,6.48970018,85.566,85.521,6.15321545]
[1773202033166,6.48970018,85.563,85.521,6.15321545]
[1773202033668,6.48970018,85.549,85.511,6.15321545]
[1773202035165,2.62394301,85.56,85.513,6.15321545]
[1773202035468,2.62394301,85.56,85.521,6.15321545]
[1773202036669,9.11364319,85.56,85.521,6.15321545]
[1773202036867,6.48970018,85.557,85.521,6.15321545]
[1773202037967,6.48970018,85.557,85.512,10.524]
[1773202038362,6.48970018,85.549,85.51,6.15321545]
[1773202038962,6.48970018,85.549,85.51,2.62394301]
[1773202039162,6.48970018,85.549,85.511,6.15321545]
[1773202041469,6.48970018,85.549,85.511,10.524]
[1773202041774,16.82750385,85.558,85.512,6.03788373]
[1773202041974,6.30950385,85.557,85.512,6.03788373]
[1773202049075,6.30950385,85.552,85.512,6.03788373]
[1773202050776,6.30950385,85.552,85.516,6.03788373]
[1773202052379,6.30950385,85.552,85.517,10.523]
[1773202056783,6.30950385,85.552,85.516,6.03788373]
[1773202058481,6.16273355,85.55,85.516,6.03788373]
[1773202066189,2.92102396,85.549,85.516,6.03788373]
[1773202066389,6.16273355,85.55,85.516,6.03788373]
[1773202066687,2.92102414,85.549,85.516,6.03788373]
[1773202066882,6.16273355,85.55,85.516,6.03788373]
[1773202067083,2.92102414,85.549,85.516,6.03788373]
[1773202067281,6.16273355,85.55,85.516,6.03788373]
[1773202067490,2.92102414,85.549,85.516,6.03788373]
[1773202067683,6.16273355,85.55,85.516,6.03788373]
[1773202067890,2.92102414,85.549,85.516,6.03788373]
[1773202068092,6.16273355,85.55,85.516,6.03788373]
[1773202068292,2.92102414,85.549,85.516,6.03788373]
[1773202068594,2.92102414,85.548,85.516,6.03788373]
[1773202068793,6.16273355,85.55,85.516,6.03788373]
[1773202068995,2.92102414,85.549,85.516,6.03788373]
[1773202069194,2.92102414,85.548,85.516,6.03788373]
[1773202069394,6.16273355,85.55,85.516,6.03788373]
[1773202069597,2.92102432,85.549,85.516,6.03788373]
[1773202069897,6.16273355,85.55,85.516,6.03788373]
[1773202073398,2.92102432,85.549,85.516,6.03788373]
[1773202073698,2.92102432,85.548,85.516,6.03788373]
[1773202073998,6.16273355,85.55,85.516,6.03788373]
[1773202074199,2.92102432,85.549,85.516,6.03788373]
[1773202074497,2.92102432,85.548,85.516,6.03788373]
[1773202074697,2.92102432,85.547,85.516,6.03788373]
[1773202074999,6.16273355,85.55,85.516,6.03788373]
[1773202075200,2.92102415,85.549,85.516,6.03788373]
[1773202075399,2.92102415,85.548,85.516,6.03788373]
[1773202075698,2.92102415,85.547,85.516,6.03788373]
[1773202075897,2.92102415,85.546,85.516,6.03788373]
[1773202076098,2.92102415,85.545,85.516,6.03788373]
[1773202076300,2.92102415,85.544,85.516,6.03788373]
[1773202076498,6.16273355,85.55,85.516,6.03788373]
[1773202076699,2.92102415,85.549,85.516,6.03788373]
[1773202076900,2.92102415,85.548,85.516,6.03788373]
[1773202077100,2.92102415,85.547,85.516,6.03788373]
[1773202077302,2.92102415,85.546,85.516,6.03788373]
[1773202077502,2.92102415,85.545,85.516,6.03788373]
[1773202077703,2.92102415,85.544,85.516,6.03788373]
[1773202077904,2.92102415,85.543,85.516,6.03788373]
[1773202078102,6.16273355,85.55,85.516,6.03788373]
[1773202078398,9.39415862,85.549,85.516,6.03788373]
[1773202078604,2.92102433,85.548,85.516,6.03788373]
[1773202078805,2.92102433,85.547,85.516,6.03788373]
[1773202079104,2.92102433,85.546,85.516,6.03788373]
[1773202079304,2.92102433,85.545,85.516,6.03788373]
[1773202079504,2.92102433,85.544,85.516,6.03788373]
[1773202079803,6.47313429,85.549,85.516,6.03788373]
[1773202079804,2.92102433,85.543,85.516,6.03788373]
[1773202080100,2.92102433,85.542,85.516,6.03788373]
[1773202080404,2.92102433,85.541,85.516,6.03788373]
[1773202080704,2.92102433,85.54,85.516,6.03788373]
[1773202081010,2.92102433,85.54,85.483,28.97348169]
[1773202081011,6.47313429,85.529,85.481,6.49879635]
[1773202081199,6.47313429,85.527,85.481,6.49879635]
[1773202081402,6.47313429,85.525,85.481,6.49879635]
[1773202081606,6.47313429,85.523,85.481,6.49879635]
[1773202081900,6.47313429,85.521,85.481,6.49879635]
[1773202082206,6.47313429,85.519,85.481,6.49879635]
[1773202082508,6.47313429,85.517,85.481,6.49879635]
[1773202082703,6.47313429,85.515,85.481,6.49879635]
[1773202083004,2.92102433,85.514,85.481,6.49879635]
[1773202083205,2.92102433,85.513,85.481,6.49879635]
[1773202083405,2.92102433,85.512,85.481,6.49879635]
[1773202083606,6.47313429,85.515,85.481,6.49879635]
[1773202083806,2.92214553,85.514,85.481,6.49879635]
[1773202084003,2.92214553,85.513,85.481,6.49879635]
[1773202084204,9.09573846,85.53,85.482,6.49879635]
[1773202084405,2.92196521,85.529,85.491,6.49879635]
[1773202084599,2.92196521,85.528,85.491,6.49879635]
[1773202084802,2.92196521,85.527,85.491,6.49879635]
[1773202085103,2.92196521,85.526,85.491,6.49879635]
[1773202085302,2.92196521,85.525,85.491,6.49879635]
[1773202085505,2.92196521,85.524,85.493,6.49879635]
[1773202085806,2.92196521,85.523,85.493,6.49879635]
[1773202086108,2.92196521,85.522,85.493,6.49879635]
[1773202086306,6.47313429,85.539,85.493,6.49879635]
[1773202086506,9.39509095,85.538,85.493,6.49879635]
[1773202086700,2.92195666,85.537,85.493,6.49879635]
[1773202086898,2.92195666,85.536,85.493,6.49879635]
[1773202087097,2.92195666,85.535,85.493,6.49879635]
[1773202087300,2.92195666,85.534,85.493,6.49879635]
[1773202087508,2.92195666,85.533,85.493,6.49879635]
[1773202087709,2.92195666,85.532,85.493,6.49879635]
[1773202088010,2.92195666,85.531,85.501,6.49879635]
[1773202088209,6.47313429,85.537,85.501,6.49879635]
[1773202090611,6.47313429,85.535,85.501,6.49879635]
[1773202090812,9.39484027,85.534,85.501,6.49879635]
[1773202091013,2.92170598,85.533,85.501,6.49879635]
[1773202091209,6.47313429,85.534,85.501,6.49879635]
[1773202091409,2.92170598,85.533,85.501,6.49879635]
[1773202091610,6.47313429,85.534,85.501,6.49879635]
[1773202091812,2.92170597,85.533,85.501,6.49879635]
[1773202092009,6.47313429,85.534,85.49,9.12140052]
[1773202092213,6.47313429,85.532,85.491,6.49879635]
[1773202098717,6.47313429,85.532,85.493,6.49879635]
[1773202100519,6.47313429,85.532,85.495,6.13784791]
[1773202109222,6.04195544,85.53,85.495,6.13784791]
[1773202111633,6.04195544,85.539,85.495,6.13784791]
[1773202111834,6.04195544,85.537,85.495,6.13784791]
[1773202112132,6.04195544,85.535,85.495,6.13784791]
[1773202115233,6.04195544,85.533,85.495,6.13784791]
[1773202116436,6.04195544,85.543,85.5,2.62260417]
[1773202116735,6.04195544,85.543,85.497,6.13784791]
[1773202116736,6.04195544,85.539,85.491,6.05166016]
[1773202116934,6.08633687,85.537,85.491,6.05166016]
[1773202117129,2.62260417,85.54,85.491,6.05166016]
[1773202117130,6.08633687,85.535,85.491,6.05166016]
[1773202117335,6.08633687,85.533,85.491,6.05166016]
[1773202118336,6.08633687,85.533,85.49,2.62260417]
[1773202118337,6.08633687,85.531,85.492,6.05166016]
[1773202118537,6.08633687,85.519,85.473,6.05166016]
[1773202118936,6.08633687,85.519,85.48,8.67426433]
[1773202119733,2.92190549,85.518,85.48,8.67426433]
[1773202119933,6.08633687,85.516,85.47,2.62260417]
[1773202120135,6.08633687,85.514,85.471,6.05166016]
[1773202120335,6.08633687,85.514,85.481,6.05166016]
[1773202121431,6.08633687,85.529,85.481,6.05166016]
[1773202121637,6.08633687,85.527,85.481,6.05166016]
[1773202121837,6.08633687,85.525,85.484,10.527]
[1773202122139,6.08633687,85.523,85.484,10.527]
[1773202122341,6.08633687,85.521,85.484,10.527]
[1773202122534,6.08633687,85.519,85.484,10.527]
[1773202122736,9.00839401,85.518,85.484,10.527]
[1773202123039,2.92205714,85.517,85.484,10.527]
[1773202123241,2.92205714,85.516,85.484,10.527]
[1773202123439,2.92205714,85.515,85.484,10.527]
[1773202123641,2.92205714,85.514,85.484,10.527]
[1773202123842,2.92205714,85.513,85.484,10.527]
[1773202124043,6.08633687,85.518,85.484,10.527]
[1773202124243,2.92205822,85.517,85.484,10.527]
[1773202124443,2.92205822,85.516,85.484,10.527]
[1773202124640,2.92205822,85.515,85.484,10.527]
[1773202124840,2.92205822,85.514,85.484,10.527]
[1773202125040,2.92205822,85.513,85.484,10.527]
[1773202125349,2.92205822,85.512,85.484,10.527]
[1773202125542,6.08633687,85.518,85.484,10.527]
[1773202125742,9.00839509,85.517,85.484,10.527]
[1773202126038,145.18999203,85.782,85.463,197.34734208]
[1773202126039,6.08633687,85.515,85.474,6.05166016]
[1773202126240,6.08633687,85.513,85.474,6.05166016]
[1773202126543,6.08633687,85.511,85.474,6.05166016]
[1773202127035,6.08633687,85.509,85.474,6.05166016]
[1773202127946,6.08633687,85.509,85.476,6.05166016]
[1773202128144,2.62260417,85.52,85.475,10.528]
[1773202128145,6.08633687,85.519,85.481,6.05166016]
[1773202128340,6.08633687,85.517,85.481,6.05166016]
[1773202128541,9.00844336,85.516,85.481,6.05166016]
[1773202128744,2.92210649,85.515,85.481,6.05166016]
[1773202128945,2.92210649,85.514,85.481,6.05166016]
[1773202129144,6.08633687,85.516,85.481,6.05166016]
[1773202129145,2.92210649,85.513,85.481,6.05166016]
[1773202129344,2.92210649,85.512,85.483,6.05166016]
[1773202129545,6.08633687,85.525,85.483,6.05166016]
[1773202129845,5.9982816,85.523,85.483,6.05166016]
[1773202130047,2.92210038,85.522,85.483,6.05166016]
[1773202130245,2.92210038,85.521,85.483,6.05166016]
[1773202130449,2.92210038,85.521,85.48,2.62260417]
[1773202130450,2.92210038,85.52,85.485,5.90004304]
[1773202130643,2.92210038,85.519,85.485,5.90004304]
[1773202130844,2.92210038,85.518,85.485,5.90004304]
[1773202131046,8.92038198,85.517,85.485,5.90004304]
[1773202131246,2.92210038,85.516,85.485,5.90004304]
[1773202131545,2.92210038,85.515,85.485,5.90004304]
[1773202131745,2.92210038,85.514,85.485,5.90004304]
[1773202131945,5.9982816,85.517,85.485,5.90004304]
[1773202132142,2.92205893,85.516,85.485,5.90004304]
[1773202132344,2.92205893,85.515,85.485,5.90004304]
[1773202132541,2.62260417,85.53,85.487,5.90004304]
[1773202132542,5.9982816,85.528,85.487,5.90004304]
[1773202132847,8.92029853,85.527,85.491,5.90004304]
[1773202133148,5.9982816,85.525,85.491,5.90004304]
[1773202133342,5.9982816,85.523,85.491,5.90004304]
[1773202133546,8.92029853,85.522,85.491,5.90004304]
[1773202133745,5.9982816,85.522,85.491,5.90004304]
[1773202134147,8.92013004,85.521,85.491,5.90004304]
[1773202134348,5.9982816,85.521,85.491,5.90004304]
[1773202135644,2.92200524,85.52,85.491,5.90004304]
[1773202135847,2.92200524,85.519,85.491,5.90004304]
[1773202136049,2.92200524,85.518,85.491,5.90004304]
[1773202136240,5.9982816,85.521,85.491,5.90004304]
[1773202136546,2.92200561,85.52,85.491,5.90004304]
[1773202136746,2.92200561,85.519,85.491,5.90004304]
[1773202136947,2.92200561,85.518,85.491,5.90004304]
[1773202137150,5.9982816,85.521,85.491,5.90004304]
[1773202137352,2.92200561,85.52,85.491,5.90004304]
[1773202137546,2.92200561,85.519,85.491,5.90004304]
[1773202137747,2.92200561,85.518,85.491,5.90004304]
[1773202138050,2.92200561,85.517,85.491,5.90004304]
[1773202138351,5.9982816,85.521,85.491,5.90004304]
[1773202138542,2.92204796,85.52,85.491,5.90004304]
[1773202138749,2.92204796,85.519,85.491,5.90004304]
[1773202138947,5.9982816,85.521,85.491,5.90004304]
[1773202138948,2.92204796,85.518,85.491,5.90004304]
[1773202139149,5.9982816,85.521,85.491,5.90004304]
[1773202139349,2.92200614,85.52,85.491,5.90004304]
[1773202139546,2.92200614,85.519,85.491,5.90004304]
[1773202139749,2.92200614,85.518,85.491,5.90004304]
[1773202140053,2.92200614,85.517,85.491,5.90004304]
[1773202140247,2.92200614,85.516,85.491,5.90004304]
[1773202140457,10.523,85.52,85.491,5.90004304]
[1773202140758,2.92204849,85.519,85.491,5.90004304]
[1773202141054,2.92204849,85.518,85.491,5.90004304]
[1773202141247,2.92204849,85.517,85.491,5.90004304]
[1773202141449,5.9982816,85.521,85.491,5.90004304]
[1773202141647,2.92196449,85.52,85.491,5.90004304]
[1773202141846,2.92196449,85.519,85.491,5.90004304]
[1773202142053,2.92196449,85.518,85.491,5.90004304]
[1773202142248,2.92196449,85.517,85.491,5.90004304]
[1773202142549,5.9982816,85.521,85.491,5.90004304]
[1773202142746,2.92196431,85.52,85.491,5.90004304]
[1773202142949,2.92196431,85.519,85.491,5.90004304]
[1773202143151,2.92196431,85.518,85.491,5.90004304]
[1773202143357,2.92196431,85.517,85.491,5.90004304]
[1773202143658,2.92196431,85.516,85.491,5.90004304]
[1773202143849,2.92204796,85.515,85.491,5.90004304]
[1773202144053,5.9982816,85.521,85.491,5.90004304]
[1773202144357,2.92204796,85.52,85.491,5.90004304]
[1773202144549,2.92204796,85.519,85.491,5.90004304]
[1773202144750,2.92204796,85.518,85.491,5.90004304]
[1773202144947,5.9982816,85.521,85.491,5.90004304]
[1773202144948,2.92204796,85.517,85.491,5.90004304]
[1773202145152,2.92204796,85.516,85.491,5.90004304]
[1773202145457,5.9982816,85.521,85.491,5.90004304]
[1773202145658,2.92200632,85.52,85.491,5.90004304]
[1773202145953,5.9982816,85.518,85.472,5.90004304]
[1773202146262,5.9982816,85.509,85.463,175.63053593]
[1773202146460,5.9982816,85.507,85.463,175.63053593]
[1773202146652,5.9982816,85.505,85.463,175.63053593]
[1773202146852,2.92200632,85.504,85.463,175.63053593]
[1773202147055,2.62443617,85.5,85.463,175.63053593]
[1773202147252,5.9982816,85.498,85.463,175.63053593]
[1773202147455,2.62443617,85.49,85.452,5.90004304]
[1773202147747,2.62443617,85.49,85.44,2.62443617]
[1773202147748,5.9982816,85.479,85.441,5.90004304]
[1773202147956,5.9982816,85.477,85.441,5.90004304]
[1773202148760,5.9982816,85.488,85.451,5.90004304]
[1773202148957,2.92316346,85.487,85.451,5.90004304]
[1773202149155,2.92316346,85.486,85.451,5.90004304]
[1773202149358,5.9982816,85.488,85.451,5.90004304]
[1773202149556,2.92316042,85.487,85.451,5.90004304]
[1773202149764,5.9982816,85.488,85.451,5.90004304]
[1773202150365,5.9982816,85.488,85.452,10.531]
[1773202150568,5.9982816,85.488,85.452,16.43104304]
[1773202152265,5.9982816,85.488,85.453,5.90004304]
[1773202154569,5.9982816,85.488,85.456,10.531]
[1773202156972,5.9982816,85.488,85.453,5.90004304]
[1773202158370,5.9982816,85.488,85.448,10.532]
[1773202168982,5.9982816,85.488,85.451,5.48584531]
[1773202172887,5.80364698,85.486,85.441,5.48584531]
[1773202174687,5.80364698,85.479,85.441,5.48584531]
[1773202174883,5.80364698,85.479,85.432,10.534]
[1773202175188,2.62443617,85.48,85.432,10.534]
[1773202175189,5.80364698,85.477,85.433,5.48584531]
[1773202176289,2.92381041,85.476,85.433,5.48584531]
[1773202176481,5.80364698,85.475,85.433,5.48584531]
[1773202177391,5.80364698,85.475,85.437,15.81936664]
[1773202177589,5.80364698,85.475,85.438,5.28636664]
[1773202182996,5.80364698,85.475,85.441,5.28636664]
[1773202183390,5.80364698,85.475,85.437,10.533]
[1773202183894,5.80364698,85.475,85.437,15.81936664]
[1773202184394,5.57700163,85.473,85.438,5.28636664]
[1773202185198,5.57700163,85.473,85.441,5.28636664]
[1773202186390,2.92376547,85.472,85.441,5.28636664]
[1773202186590,5.57700163,85.473,85.441,5.28636664]
[1773202186797,2.92376546,85.472,85.441,5.28636664]
[1773202186995,5.57700163,85.473,85.441,5.28636664]
[1773202187192,5.57700163,85.473,85.443,5.28636664]
[1773202187497,2.92372306,85.472,85.443,5.28636664]
[1773202187698,2.92372306,85.471,85.443,5.28636664]
[1773202187894,5.57700163,85.473,85.443,5.28636664]
[1773202188096,2.92372306,85.472,85.443,5.28636664]
[1773202188390,2.92376511,85.471,85.443,5.28636664]
[1773202188596,2.92376511,85.47,85.443,5.28636664]
[1773202188796,5.57700163,85.473,85.443,5.28636664]
[1773202188996,2.92372306,85.472,85.443,5.28636664]
[1773202189192,5.57700163,85.47,85.434,10.533]
[1773202189398,5.57700163,85.468,85.43,2.62443617]
[1773202189594,5.27531784,85.466,85.43,8.20934378]
[1773202189796,2.9238131,85.465,85.431,5.58490761]
[1773202190098,5.27531784,85.466,85.431,5.58490761]
[1773202190298,2.92381127,85.465,85.431,5.58490761]
[1773202190492,2.92381127,85.464,85.431,16.11890761]
[1773202190690,2.92381127,85.463,85.432,5.58490761]
[1773202190895,2.92381127,85.462,85.432,5.58490761]
[1773202191096,5.27531784,85.475,85.432,5.58490761]
[1773202191295,2.92380981,85.474,85.432,5.58490761]
[1773202191495,2.92380981,85.473,85.432,5.58490761]
[1773202191696,2.92380981,85.472,85.432,5.58490761]
[1773202191897,2.92380981,85.471,85.432,5.58490761]
[1773202192097,2.92380981,85.47,85.432,5.58490761]
[1773202192301,2.92380981,85.469,85.432,5.58490761]
[1773202192502,2.92380981,85.468,85.432,5.58490761]
[1773202192801,2.92380981,85.467,85.432,5.58490761]
[1773202192993,2.92380981,85.466,85.432,5.58490761]
[1773202193193,2.92380981,85.465,85.44,2.62443617]
[1773202193393,5.27531784,85.475,85.441,5.58490761]
[1773202193599,2.92360989,85.474,85.441,5.58490761]
[1773202193901,2.92360989,85.473,85.441,5.58490761]
[1773202194102,2.92360989,85.472,85.441,5.58490761]
[1773202194301,2.92360989,85.471,85.441,5.58490761]
[1773202194501,2.92360989,85.47,85.441,5.58490761]
[1773202194801,2.92360989,85.469,85.441,5.58490761]
[1773202195001,2.92360989,85.468,85.443,5.58490761]
[1773202195200,5.27531784,85.475,85.443,5.58490761]
[1773202195201,2.92360989,85.467,85.443,5.58490761]
[1773202195502,2.92360989,85.466,85.443,5.58490761]
[1773202195800,2.92360989,85.466,85.395,35.09]
[1773202195801,5.27531784,85.49,85.45,2.62443617]
[1773202195997,5.27531784,85.49,85.451,5.58490761]
[1773202197404,5.27531784,85.49,85.452,5.58490761]
[1773202201406,7.902075,85.49,85.452,5.58490761]
[1773202201606,5.27531784,85.489,85.452,5.58490761]
[1773202202303,7.902075,85.52,85.471,5.58490761]
[1773202202608,5.27531784,85.53,85.491,5.58490761]
[1773202202808,5.27531784,85.528,85.491,5.58490761]
[1773202203109,5.27531784,85.526,85.491,5.58490761]
[1773202203408,5.27531784,85.524,85.491,5.58490761]
[1773202204205,10.523,85.518,85.491,5.58490761]
[1773202204405,5.27531784,85.524,85.491,5.58490761]
[1773202204600,5.27531784,85.539,85.5,2.62675716]
[1773202204805,5.27531784,85.549,85.511,5.58490761]
[1773202205003,5.27531784,85.547,85.5,2.62675716]
[1773202205197,5.27531784,85.539,85.49,2.62675716]
[1773202205402,5.27531784,85.529,85.49,2.62675716]
[1773202205912,5.27531784,85.529,85.489,5.58490761]
[1773202206206,5.27531784,85.529,85.48,2.62675716]
[1773202206409,5.27531784,85.529,85.481,5.58490761]
[1773202207004,5.27531784,85.529,85.491,5.58490761]
[1773202213410,10.522,85.527,85.491,5.58490761]
[1773202213615,5.27531784,85.526,85.491,5.58490761]
[1773202215713,2.62675716,85.54,85.491,5.58490761]
[1773202215915,5.27531784,85.538,85.491,5.58490761]
[1773202216112,5.27531784,85.536,85.491,5.58490761]
[1773202216418,5.27531784,85.535,85.491,5.58490761]
[1773202216712,7.902075,85.55,85.501,5.58490761]
[1773202216913,2.92151187,85.549,85.501,5.58490761]
[1773202217106,2.92151187,85.548,85.501,5.58490761]
[1773202217305,7.902075,85.55,85.501,5.58490761]
[1773202217508,7.902075,85.55,85.5,2.62675716]
[1773202217509,5.27531784,85.55,85.511,5.58490761]
[1773202219007,7.902075,85.55,85.511,5.58490761]
[1773202219205,5.27531784,85.549,85.511,5.58490761]
[1773202219408,5.27531784,85.545,85.511,5.58490761]
[1773202219607,5.23692534,85.539,85.499,4.90961075]
[1773202219812,5.23692534,85.529,85.481,4.90961075]
[1773202220514,5.23692534,85.529,85.488,4.90961075]